fUST/lending_fUST_20251003
["ID","MTS","AMOUNT","RATE_DAILY","PERIOD"]
[388877626,1759457438403,-1062.63,0.00018079,2]
[388877627,1759457438412,-500.0,0.00018079,2]
[388877628,1759457438424,-159.626624,0.00018079,2]
[388877629,1759457438434,-387.92596188,0.00018079,2]
[388877630,1759457438443,-1066.54,0.00018079,2]
[388877631,1759457438453,-500.0,0.00018079,2]
[388877632,1759457438462,-395.43424728,0.00018079,2]
[388877633,1759457438473,-415.9280037,0.00018079,2]
[388877634,1759457438483,-500.0,0.00018079,2]
[388877635,1759457438493,-500.0,0.00018079,2]
[388877636,1759457438503,-576.01,0.00018079,2]
[388877637,1759457438513,-327.69937547,0.00018079,2]
[388877638,1759457438523,-500.0,0.00018079,2]
[388877639,1759457438532,-500.0,0.00018079,2]
[388877640,1759457438540,-748.57,0.00018079,2]
[388877641,1759457438549,-500.0,0.00018079,2]
[388877642,1759457438558,-500.0,0.00018079,2]
[388877643,1759457438567,-500.0,0.00018079,2]
[388877644,1759457438576,-500.0,0.00018079,2]
[388877645,1759457438585,-705.35,0.00018079,2]
[388877646,1759457438595,-764.68,0.00018079,2]
[388877647,1759457438604,-500.0,0.00018079,2]
[388877648,1759457438612,-500.0,0.00018079,2]
[388877649,1759457438621,-500.0,0.00018079,2]
[388877650,1759457438630,-500.0,0.00018079,2]
[388877651,1759457438639,-857.04,0.00018079,2]
[388877652,1759457438649,-500.0,0.00018079,2]
[388877653,1759457438658,-406.89564953,0.00018079,2]
[388877654,1759457438668,-500.0,0.00018079,2]
[388877655,1759457438677,-868.92,0.00018079,2]
[388877656,1759457438686,-829.35,0.00018079,2]
[388877657,1759457438696,-909.48,0.00018079,2]
[388877658,1759457438705,-500.0,0.00018079,2]
[388877659,1759457438715,-769.12,0.00018079,2]
[388877660,1759457438724,-500.0,0.00018079,2]
[388877661,1759457438734,-500.0,0.00018079,2]
[388877662,1759457438744,-500.0,0.00018079,2]
[388877663,1759457438753,-500.0,0.00018079,2]
[388877664,1759457438762,-824.68,0.00018079,2]
[388877665,1759457438772,-596.67,0.00018079,2]
[388877666,1759457438781,-412.79884839,0.00018079,2]
[388877667,1759457438790,-530.28,0.00018079,2]
[388877668,1759457438800,-237.35565788,0.00018079,2]
[388877669,1759457438809,-500.0,0.00018079,2]
[388877670,1759457438819,-500.0,0.00018079,2]
[388877671,1759457438827,-320.086454,0.00018079,2]
[388877672,1759457438836,-320.086454,0.00018079,2]
[388877673,1759457438845,-500.0,0.00018079,2]
[388877674,1759457438854,-320.086454,0.00018079,2]
[388877675,1759457438864,-320.086453,0.00018079,2]
[388877676,1759457438874,-319.825191,0.00018079,2]
[388877677,1759457438883,-319.825191,0.00018079,2]
[388877678,1759457438894,-319.825191,0.00018079,2]
[388877679,1759457438904,-500.0,0.00018079,2]
[388877680,1759457438915,-319.825198,0.00018079,2]
[388877681,1759457438924,-500.0,0.00018079,2]
[388877682,1759457438934,-500.0,0.00018079,2]
[388877683,1759457438944,-1083.12,0.0001808,2]
[388877684,1759457438953,-402.23,0.0001808,2]
[388877685,1759457438963,-151.0,0.000181,2]
[388877686,1759457438972,-168.0,0.00018123,2]
[388877687,1759457438981,-21170.2162013,0.0001815,2]
[388877688,1759457438991,-3107.5434126,0.0001815,2]
[388877689,1759457439001,-5011.7024066,0.0001815,2]
[388877690,1759457439010,-3037.7150555,0.0001815,2]
[388877691,1759457439019,-5040.04053657,0.0001815,2]
[388877692,1759457439032,-16029.08529096,0.0001815,2]
[388877697,1759457440351,-500.0,0.00018079,2]
[388877699,1759457440360,-2846.79516032,0.0001815,2]
[388877700,1759457440371,-1896.94150928,0.0001815,2]
[388877701,1759457440381,-711.80323751,0.0001815,2]
[388877702,1759457440397,-1052.93264708,0.0001815,2]
[388877703,1759457440409,-1877.08369585,0.0001815,2]
[388877704,1759457440589,404.85,0.00018069,3]
[388877705,1759457441475,500.0,0.00018075,2]
[388877706,1759457441614,500.0,0.00018071,2]
[388877707,1759457441645,502.96079391,0.00018045,2]
[388877708,1759457442292,500.0,0.00018071,2]
[388877715,1759457443190,500.0,0.00018075,2]
[388877720,1759457443615,500.0,0.00018075,2]
[388877722,1759457444094,2158.1,0.00018045,2]
[388877725,1759457445673,561.7,0.00018075,2]
[388877730,1759457448170,643.46,0.00018075,2]
[388877731,1759457448626,1714.19,0.00018074,2]
[388877735,1759457449848,748.8,0.00018075,2]
[388877740,1759457450649,765.94920609,0.00018075,2]
[388877741,1759457450893,1344.99079391,0.00018075,2]
[388877746,1759457454138,500.0,0.00018075,2]
[388877747,1759457454364,179.8402904,0.00028767,120]
[388877748,1759457454789,500.0,0.00018071,2]
[388877749,1759457455054,1392.56,0.00018045,2]
[388877750,1759457456401,847.97,0.00018074,2]
[388877751,1759457460498,346.15553391,0.00018067,2]
[388877752,1759457460953,524.57077631,0.00018071,2]
[388877753,1759457462937,2500.0,0.00018067,2]
[388877754,1759457464080,586.19,0.00018045,2]
[388877755,1759457466456,1086.16,0.00018071,2]
[388877756,1759457473415,529.25,0.00018045,2]
[388877757,1759457476738,500.0,0.00018073,2]
[388877758,1759457476767,500.0,0.00018073,2]
[388877759,1759457476798,500.0,0.00018073,2]
[388877760,1759457476825,500.0,0.00018073,2]
[388877761,1759457476853,500.0,0.00018073,2]
[388877762,1759457477092,500.0,0.00018073,2]
[388877763,1759457477121,500.0,0.00018073,2]
[388877764,1759457477152,500.0,0.00018073,2]
[388877765,1759457477179,427.68368978,0.00018073,2]
[388877766,1759457477199,72.31631022,0.00018073,2]
[388877767,1759457477303,500.0,0.00018073,2]
[388877768,1759457477338,2169.081066,0.00017119,2]
[388877769,1759457477394,500.0,0.00018073,2]
[388877770,1759457477422,277.32880916,0.00018073,2]
[388877771,1759457477463,214.84868031,0.00018073,2]
[388877772,1759457477491,500.0,0.00018073,2]
[388877773,1759457477620,500.0,0.00018073,2]
[388877774,1759457477719,500.0,0.00018073,2]
[388877775,1759457477777,500.0,0.00018073,2]
[388877776,1759457477947,500.0,0.00018073,2]
[388877777,1759457478077,500.0,0.00018073,2]
[388877778,1759457478110,596.32646136,0.00018073,2]
[388877779,1759457478484,500.0,0.00018073,2]
[388877780,1759457478544,500.0,0.00018073,2]
[388877781,1759457478626,309.95706266,0.00018073,2]
[388877782,1759457478778,493.75164387,0.00018073,2]
[388877783,1759457479392,500.0,0.00018073,2]
[388877784,1759457479423,366.39996642,0.00018073,2]
[388877785,1759457479450,133.60003358,0.00018073,2]
[388877786,1759457479479,500.0,0.00018073,2]
[388877787,1759457479512,500.0,0.00018073,2]
[388877788,1759457479546,500.0,0.00018073,2]
[388877789,1759457479577,500.0,0.00018073,2]
[388877790,1759457479605,500.0,0.00018073,2]
[388877791,1759457479634,500.0,0.00018073,2]
[388877792,1759457479676,500.0,0.00018073,2]
[388877793,1759457479704,500.0,0.00018073,2]
[388877794,1759457479760,500.0,0.00018073,2]
[388877795,1759457479790,500.0,0.00018073,2]
[388877796,1759457479835,500.0,0.00018073,2]
[388877797,1759457479868,253.92958519,0.00018073,2]
[388877798,1759457479901,500.0,0.00018073,2]
[388877799,1759457484276,517.76,0.00018071,2]
[388877800,1759457484612,500.0,0.00018045,2]
[388877801,1759457491239,10000.01,0.00017974,2]
[388877802,1759457491261,10000.01,0.00017974,2]
[388877803,1759457491286,416.48763608,0.00017974,2]
[388877804,1759457494355,-1112.5,0.00018045,2]
[388877805,1759457494383,-500.0,0.00018073,2]
[388877806,1759457494410,-500.0,0.00018073,2]
[388877807,1759457494442,-500.0,0.00018073,2]
[388877808,1759457494471,-500.0,0.00018073,2]
[388877809,1759457494499,-500.0,0.00018073,2]
[388877810,1759457494528,-500.0,0.00018073,2]
[388877811,1759457494561,-500.0,0.00018073,2]
[388877812,1759457494590,-275.01,0.00018073,2]
[388877814,1759457542008,-2204.91,0.00018045,2]
[388877815,1759457542036,-927.09,0.00018045,2]
[388877816,1759457542064,-1826.63,0.00018071,2]
[388877817,1759457542203,-1263.49,0.00018071,2]
[388877818,1759457542230,-643.51,0.00018071,2]
[388877819,1759457542256,-300.0,0.00018072,2]
[388877820,1759457542287,-851.95694062,0.00018073,2]
[388877821,1759457542314,-224.99,0.00018073,2]
[388877822,1759457542341,-347.8301031,0.00018073,2]
[388877823,1759457542369,-500.0,0.00018073,2]
[388877824,1759457542626,-500.0,0.00018073,2]
[388877825,1759457542654,-236.45591256,0.00018073,2]
[388877826,1759457542783,-263.54408744,0.00018073,2]
[388877827,1759457542809,-500.0,0.00018073,2]
[388877828,1759457542837,-447.7082628,0.00018073,2]
[388877829,1759457542865,-500.0,0.00018073,2]
[388877830,1759457542892,-500.0,0.00018073,2]
[388877831,1759457542919,-367.55094555,0.00018073,2]
[388877832,1759457542946,-500.0,0.00018074,2]
[388877833,1759457542972,-1477.43,0.00018074,2]
[388877834,1759457542998,-141.03340842,0.00018074,2]
[388877835,1759457543109,-605.47659158,0.00018074,2]
[388877836,1759457543137,-957.5,0.00018074,2]
[388877837,1759457543166,-3231.06,0.00018074,2]
[388877838,1759457543240,-500.0,0.00018074,2]
[388877839,1759457543272,-500.0,0.00018074,2]
[388877840,1759457543300,-500.0,0.00018075,2]
[388877841,1759457543327,-500.0,0.00018075,2]
[388877842,1759457543355,-347.93934387,0.00018075,2]
[388877843,1759457543483,-1175.39,0.00018075,2]
[388877844,1759457543788,-2350.78,0.00018075,2]
[388877845,1759457543868,-4701.56,0.00018075,2]
[388877846,1759457544104,-596.89,0.00018075,2]
[388877847,1759457544135,-3180.76,0.00018075,2]
[388877848,1759457544749,-2444.71,0.00018075,2]
[388877849,1759457544776,-500.0,0.00018075,2]
[388877850,1759457544802,-1484.12,0.00018075,2]
[388877851,1759457544828,-500.0,0.00018075,2]
[388877852,1759457544875,-1313.92,0.00018075,2]
[388877853,1759457544902,-500.0,0.00018075,2]
[388877854,1759457544930,-500.0,0.00018075,2]
[388877855,1759457544957,-500.0,0.00018075,2]
[388877856,1759457544984,-500.0,0.00018075,2]
[388877857,1759457545141,-4890.09,0.00018075,2]
[388877858,1759457545184,-1008.33,0.00018075,2]
[388877859,1759457545211,-500.0,0.00018075,2]
[388877860,1759457545239,-1820.11,0.00018075,2]
[388877861,1759457545267,-958.57,0.00018075,2]
[388877862,1759457545294,-500.0,0.00018075,2]
[388877863,1759457545337,-1200.0,0.00018072,2]
[388877864,1759457545365,-500.0,0.00018075,2]
[388877865,1759457545392,-500.0,0.00018075,2]
[388877866,1759457545419,-500.0,0.00018075,2]
[388877867,1759457545446,-1265.33,0.00018075,2]
[388877868,1759457545480,-500.0,0.00018075,2]
[388877869,1759457545506,-500.0,0.00018075,2]
[388877870,1759457546381,-500.0,0.00018045,2]
[388877871,1759457546408,-712.17,0.00018075,2]
[388877872,1759457546435,-447.54473173,0.00018075,2]
[388877873,1759457546464,-605.84,0.00018075,2]
[388877874,1759457546490,-500.0,0.00018075,2]
[388877875,1759457546516,-500.0,0.00018075,2]
[388877876,1759457549808,500.0,0.00018075,2]
[388877877,1759457549866,2968.90053654,0.00018045,2]
[388877878,1759457549889,320.28946346,0.00018045,2]
[388877879,1759457550211,632.92,0.00018074,2]
[388877880,1759457550571,2393.76,0.00018071,2]
[388877881,1759457552129,900.0,0.00018074,2]
[388877882,1759457552994,500.0,0.00018071,2]
[388877883,1759457554169,500.0,0.00018075,2]
[388877884,1759457555264,500.0,0.00018074,2]
[388877886,1759457556333,500.0,0.00018075,2]
[388877889,1759457559087,966.35,0.00018075,2]
[388877890,1759457559784,546.33,0.00018071,2]
[388877891,1759457560012,1786.41,0.00018071,2]
[388877892,1759457563090,1132.5,0.00018045,2]
[388877893,1759457563485,500.0,0.00018023,2]
[388877894,1759457564664,1440.7281534,0.00017814,2]
[388877895,1759457568305,500.0,0.00018023,2]
[388877896,1759457569560,482.69674841,0.00018073,2]
[388877897,1759457572382,1260.39,0.00018045,2]
[388877898,1759457573130,501.46477237,0.00018023,2]
[388877899,1759457589908,1118.55,0.00018071,2]
[388877900,1759457593224,-1119.93,0.00018074,2]
[388877901,1759457593252,-300.0,0.00018074,2]
[388877902,1759457593280,-512.89,0.00018074,2]
[388877903,1759457593307,-500.0,0.00018075,2]
[388877904,1759457593333,-500.0,0.00018075,2]
[388877905,1759457593360,-1124.96,0.00018075,2]
[388877906,1759457593740,-1884.45,0.00018075,2]
[388877907,1759457593768,-500.0,0.00018075,2]
[388877908,1759457593795,-500.0,0.00018075,2]
[388877909,1759457593822,-891.7,0.00018075,2]
[388877910,1759457593850,-1086.41,0.00018075,2]
[388877911,1759457593878,-110.31925433,0.00018075,2]
[388877912,1759457593976,-54.25149134,0.00018075,2]
[388877913,1759457594006,-515.26977066,0.00018075,2]
[388877914,1759457602718,500.0,0.00018071,2]
[388877915,1759457603161,2246.83,0.00018075,2]
[388877916,1759457603599,3176.21,0.00018071,2]
[388877917,1759457605087,607.06,0.00018045,2]
[388877918,1759457605137,175.6861938,0.00018075,2]
[388877919,1759457607686,500.0,0.00018075,2]
[388877921,1759457610189,502.42419369,0.00018075,2]
[388877922,1759457610878,910.56,0.00018075,2]
[388877923,1759457611625,242.19708851,0.00018075,2]
[388877924,1759457611647,257.80291149,0.00018075,2]
[388877925,1759457612108,500.0,0.00018075,2]
[388877926,1759457612648,2172.52,0.00018071,2]
[388877927,1759457614463,362.02256131,0.00018075,2]
[388877928,1759457615769,767.56,0.00018074,2]
[388877929,1759457619430,500.0,0.00018075,2]
[388877930,1759457620792,500.0,0.00018075,2]
[388877931,1759457620982,1633.06,0.00018074,2]
[388877932,1759457622946,500.0,0.00018075,2]
[388877933,1759457624191,500.0,0.00018045,2]
[388877934,1759457625028,500.0,0.00018071,2]
[388877935,1759457625517,500.0,0.00018071,2]
[388877937,1759457626901,1029.94,0.00018075,2]
[388877938,1759457629691,277.1045272,0.00018075,2]
[388877939,1759457629714,491.6854728,0.00018075,2]
[388877940,1759457634394,500.0,0.00018071,2]
[388877941,1759457635018,1062.69,0.00018074,2]
[388877942,1759457635051,150.0,0.000178,2]
[388877943,1759457636519,600.08,0.00018045,2]
[388877944,1759457636885,355.37483475,0.00018075,2]
[388877945,1759457637086,588.89,0.00018075,2]
[388877947,1759457637276,500.0,0.00018071,2]
[388877948,1759457639915,1255.84,0.00018075,2]
[388877949,1759457642157,502.1067587,0.00018071,2]
[388877950,1759457642343,500.0,0.00018075,2]
[388877951,1759457642437,2145.58,0.00018075,2]
[388877952,1759457644709,1306.25,0.00018045,2]
[388877953,1759457645577,41.51293375,0.00018075,2]
[388877954,1759457645599,855.80706625,0.00018075,2]
[388877955,1759457645843,500.0,0.00018075,2]
[388877957,1759457648443,851.06,0.00018071,2]
[388877958,1759457653912,595.96,0.00018045,2]
[388877959,1759457656755,500.0,0.00018074,2]
[388877960,1759457656941,6697.18293375,0.00017975,2]
[388877961,1759457656963,10000.01,0.00017975,2]
[388877962,1759457656985,10000.01,0.00017975,2]
[388877963,1759457657008,10000.01,0.00017975,2]
[388877964,1759457657030,10000.01,0.00017975,2]
[388877965,1759457657055,10000.01,0.00017975,2]
[388877966,1759457657076,10000.01,0.00017975,2]
[388877967,1759457657098,10000.01,0.00017975,2]
[388877968,1759457657119,10000.01,0.00017975,2]
[388877969,1759457657140,1102.82706625,0.00017975,2]
[388877970,1759457657830,6984.30645695,0.00018,3]
[388877971,1759457658430,1337.29,0.00018075,2]
[388877972,1759457659482,271.51692098,0.00018075,2]
[388877974,1759457663680,304.06955582,0.00018074,2]
[388877975,1759457669722,-721.57,0.00018045,2]
[388877976,1759457669751,-500.0,0.00018071,2]
[388877977,1759457669779,-195.93044418,0.00018074,2]
[388877978,1759457669807,-699.58,0.00018075,2]
[388877979,1759457669835,-1751.42,0.00018075,2]
[388877981,1759457673999,171.6515626,0.00017142,2]
[388877984,1759457681517,2000.0,0.00018068,2]
[388877985,1759457681784,1856.305,0.00018068,2]
[388877986,1759457683923,-500.0,0.00018071,2]
[388877987,1759457683952,-1716.85,0.00018071,2]
[388877988,1759457683980,-500.0,0.00018075,2]
[388877989,1759457684006,-1000.93060731,0.00018075,2]
[388877990,1759457684032,-734.69479998,0.00018075,2]
[388877991,1759457686128,-1044.51,0.00018071,2]
[388877992,1759457686154,-1095.06,0.00018075,2]
[388877993,1759457686181,-500.0,0.00018075,2]
[388877994,1759457686208,-161.91414948,0.00018075,2]
[388877995,1759457686236,-300.0,0.00018076,2]
[388877996,1759457686263,-588.68,0.00018077,2]
[388877997,1759457686289,-981.2,0.00018077,2]
[388877998,1759457690170,329.01945538,0.00017979,2]
[388877999,1759457702582,666.0,0.00017101,2]
[388878000,1759457703047,-849.11,0.00018045,2]
[388878001,1759457703076,-717.6,0.00018074,2]
[388878002,1759457703104,-1475.51,0.00018074,2]
[388878003,1759457703292,-500.0,0.00018045,2]
[388878004,1759457703320,-3915.57,0.00018074,2]
[388878005,1759457703463,-2378.91,0.00018075,2]
[388878006,1759457703491,-500.0,0.00018075,2]
[388878007,1759457703520,-300.0,0.00018076,2]
[388878008,1759457703548,-300.0,0.00018076,2]
[388878009,1759457703577,-300.0,0.00018076,2]
[388878010,1759457703605,-239.0,0.00018076,2]
[388878011,1759457703634,-764.19,0.00018076,2]
[388878012,1759457703802,-435.81,0.00018076,2]
[388878013,1759457703828,-300.0,0.00018076,2]
[388878014,1759457703856,-3613.83,0.00018077,2]
[388878015,1759457703884,-555.51,0.00018077,2]
[388878016,1759457704244,-1043.56,0.00018079,2]
[388878017,1759457704271,-663.84,0.00018079,2]
[388878018,1759457704298,-500.0,0.00018079,2]
[388878019,1759457704323,-500.0,0.00018079,2]
[388878020,1759457704350,-1222.39,0.00018079,2]
[388878021,1759457704376,-949.14,0.00018079,2]
[388878022,1759457704542,-500.0,0.00018079,2]
[388878023,1759457704570,-500.0,0.00018079,2]
[388878024,1759457704596,-500.0,0.00018079,2]
[388878025,1759457704623,-541.714,0.00018079,2]
[388878026,1759457704650,-500.0,0.00018079,2]
[388878027,1759457704682,-687.81,0.00018079,2]
[388878028,1759457704710,-500.0,0.00018079,2]
[388878029,1759457704740,-500.0,0.00018079,2]
[388878030,1759457704767,-502.29400012,0.00018079,2]
[388878031,1759457704929,-778.9,0.00018079,2]
[388878032,1759457704956,-500.0,0.00018079,2]
[388878033,1759457704982,-500.0,0.00018079,2]
[388878034,1759457705009,-500.0,0.00018079,2]
[388878035,1759457705036,-1953.56,0.00018079,2]
[388878036,1759457705063,-397.14027104,0.00018079,2]
[388878037,1759457705090,-240.80945792,0.00018079,2]
[388878038,1759457705181,-259.19054208,0.00018079,2]
[388878039,1759457705209,-843.97,0.00018079,2]
[388878040,1759457705237,-500.0,0.00018079,2]
[388878041,1759457705264,-678.14,0.00018079,2]
[388878042,1759457705291,-578.96,0.00018079,2]
[388878043,1759457705318,-500.0,0.00018079,2]
[388878044,1759457705345,-500.0,0.00018079,2]
[388878045,1759457705374,-502.90243334,0.00018079,2]
[388878046,1759457705402,-500.0,0.00018079,2]
[388878047,1759457705485,-500.0,0.00018079,2]
[388878048,1759457705511,-500.0,0.00018079,2]
[388878049,1759457705538,-500.0,0.00018079,2]
[388878050,1759457705565,-500.0,0.00018079,2]
[388878051,1759457705592,-500.0,0.00018079,2]
[388878052,1759457705619,-500.0,0.00018079,2]
[388878053,1759457705646,-500.0,0.00018079,2]
[388878054,1759457705676,-500.0,0.00018079,2]
[388878055,1759457705705,-284.53,0.000181,2]
[388878056,1759457705732,-500.0,0.00018149,2]
[388878057,1759457706274,-562.44,0.00018149,2]
[388878058,1759457706301,-500.0,0.00018149,2]
[388878059,1759457706330,-1314.39,0.00018149,2]
[388878060,1759457706357,-881.11,0.00018149,2]
[388878061,1759457706385,-647.18,0.00018149,2]
[388878062,1759457706412,-797.66,0.00018149,2]
[388878063,1759457706438,-94.45,0.00018149,2]
[388878064,1759457706977,-405.55,0.00018149,2]
[388878065,1759457707006,-500.0,0.00018149,2]
[388878066,1759457707033,-500.0,0.00018149,2]
[388878067,1759457707059,-500.0,0.00018149,2]
[388878068,1759457707089,-500.0,0.00018149,2]
[388878069,1759457707116,-500.0,0.00018149,2]
[388878070,1759457707147,-609.01484896,0.00018149,2]
[388878071,1759457707179,-500.0,0.00018149,2]
[388878072,1759457707205,-170.29880271,0.00018149,2]
[388878073,1759457707232,-227.19719887,0.00018149,2]
[388878074,1759457707260,-500.0,0.00018149,2]
[388878075,1759457707464,-559.24802558,0.00018149,2]
[388878076,1759457707491,-500.0,0.00018149,2]
[388878077,1759457707517,-500.0,0.00018149,2]
[388878078,1759457707545,-500.0,0.00018149,2]
[388878079,1759457707572,-498.87176231,0.00018149,2]
[388878080,1759457707599,-463.75516753,0.00018149,2]
[388878081,1759457707627,-500.0,0.00018149,2]
[388878082,1759457707654,-500.0,0.00018149,2]
[388878083,1759457707688,-500.0,0.00018149,2]
[388878084,1759457707716,-456.26008916,0.00018149,2]
[388878085,1759457707950,-43.73991084,0.00018149,2]
[388878086,1759457707984,-3500.63,0.00018149,2]
[388878087,1759457708017,-500.0,0.00018149,2]
[388878088,1759457708055,-500.0,0.00018149,2]
[388878089,1759457710042,-582.76,0.00018071,2]
[388878090,1759457710073,-1000.0,0.00018139,2]
[388878091,1759457710101,-580.82836388,0.00018139,2]
[388878092,1759457710600,-1000.0,0.00018139,2]
[388878093,1759457711578,-500.0,0.00018045,2]
[388878094,1759457711606,-1037.95421166,0.00018139,2]
[388878095,1759457711635,-151.0,0.00018139,2]
[388878096,1759457711705,-421.67231711,0.00018139,2]
[388878097,1759457712578,-583.51,0.00018149,2]
[388878098,1759457713741,-556.98,0.00018149,2]
[388878099,1759457714973,-2256.37802266,0.0001815,2]
[388878100,1759457714989,-10000.01,0.0001815,2]
[388878101,1759457715013,-10000.01,0.0001815,2]
[388878102,1759457715051,-8635.70474457,0.0001815,2]
[388878103,1759457715061,-1004.2954986,0.0001815,2]
[388878104,1759457715071,-360.00975683,0.00018169,2]
[388878105,1759457715217,-250.0,0.00018139,2]
[388878106,1759457715245,-139.99024317,0.00018169,2]
[388878107,1759457715276,-500.0,0.00018169,2]
[388878108,1759457715308,-500.0,0.00018169,2]
[388878109,1759457715336,-596.32,0.00018169,2]
[388878110,1759457715366,-714.29,0.00018169,2]
[388878111,1759457715395,-500.0,0.00018169,2]
[388878112,1759457715422,-528.41,0.00018169,2]
[388878113,1759457715450,-618.92,0.00018169,2]
[388878114,1759457715569,-2333.81,0.00018169,2]
[388878115,1759457715595,-690.27,0.00018169,2]
[388878116,1759457715621,-500.0,0.00018169,2]
[388878117,1759457715647,-500.0,0.00018169,2]
[388878118,1759457715677,-500.0,0.00018169,2]
[388878119,1759457715707,-447.84,0.00018169,2]
[388878120,1759457715809,-56.17,0.00018169,2]
[388878121,1759457715836,-500.0,0.00018169,2]
[388878122,1759457715863,-523.33,0.00018169,2]
[388878123,1759457715892,-1032.83,0.00018169,2]
[388878124,1759457715919,-500.0,0.00018169,2]
[388878125,1759457715945,-500.0,0.00018169,2]
[388878126,1759457715972,-154.80564579,0.00018169,2]
[388878127,1759457715999,-151.0,0.00018169,2]
[388878128,1759457716026,-1241.0,0.00018169,2]
[388878129,1759457716054,-151.0,0.00018169,2]
[388878130,1759457716082,-151.0,0.00018169,2]
[388878131,1759457716452,-1040.9,0.00018149,2]
[388878132,1759457716481,-500.0,0.00018169,2]
[388878133,1759457716508,-515.0126683,0.00018173,2]
[388878134,1759457716535,-500.34755871,0.00018173,2]
[388878135,1759457716561,-500.80658169,0.00018173,2]
[388878136,1759457716588,-500.0,0.00018173,2]
[388878137,1759457716616,-568.3730909,0.00018173,2]
[388878138,1759457716783,-250.0,0.00018139,2]
[388878139,1759457716810,-1749.1302008,0.00018173,2]
[388878140,1759457717373,250.0,0.00018139,2]
[388878141,1759457717436,500.0,0.00018075,2]
[388878142,1759457717773,250.0,0.00018139,2]
[388878143,1759457719103,-250.0,0.00018139,2]
[388878144,1759457719131,-277.90458687,0.00018139,2]
[388878145,1759457719368,500.0,0.00018079,2]
[388878146,1759457720391,1822.74,0.00018074,2]
[388878147,1759457721310,2237.24,0.00018079,2]
[388878148,1759457721376,1549.25,0.00018045,2]
[388878149,1759457723721,500.0,0.00018149,2]
[388878150,1759457724616,2334.97082626,0.00018149,2]
[388878151,1759457724639,2665.02917374,0.00018149,2]
[388878153,1759457726792,500.0,0.00018149,2]
[388878154,1759457727039,250.0,0.00018139,2]
[388878155,1759457727662,250.0,0.00018139,2]
[388878156,1759457728308,250.0,0.00018139,2]
[388878157,1759457728552,500.0,0.00018074,2]
[388878158,1759457728933,250.0,0.00018139,2]
[388878159,1759457729574,250.0,0.00018139,2]
[388878160,1759457729602,3235.54,0.00018045,2]
[388878161,1759457729861,993.16,0.00018071,2]
[388878162,1759457730219,250.0,0.00018139,2]
[388878163,1759457730425,606.28082626,0.00018149,2]
[388878164,1759457730447,505.43917374,0.00018149,2]
[388878165,1759457730481,502.16790799,0.00018075,2]
[388878166,1759457730873,250.0,0.00018139,2]
[388878167,1759457731494,250.0,0.00018139,2]
[388878168,1759457731853,8492.40291827,0.00018074,2]
[388878169,1759457731876,345.98708173,0.00018074,2]
[388878170,1759457732116,250.0,0.00018139,2]
[388878171,1759457732231,500.0,0.00018139,2]